[Event "Titled Tuesday Blitz August 17 2021"]
[White "Gerzhoy, Leonid"]
[Black "Obolentseva, Alexandra"]
[WhiteFideId "2806126"]
[BlackFideId "24153648"]
[WhiteElo "2539"]
[BlackElo "2113"]
[Result "0-1"]
[Round "10"]
[TimeControl "180+1"]
[Date "2021.08.17"]
[WhiteClock "0:00:05"]
[BlackClock "0:00:20"]

1. d4 {[%clk 0:02:59]}  Nf6 {[%clk 0:02:59]} 2. Nf3 {[%clk 0:02:59]}  g6 {[%clk 0:02:58]} 3. Bg5 {[%clk 0:02:59]}  Bg7 {[%clk 0:02:58]} 4. Nbd2 {[%clk 0:02:58]}  d5 {[%clk 0:02:57]} 5. e3 {[%clk 0:02:58]}  h6 {[%clk 0:02:50]} 6. Bh4 {[%clk 0:02:57]}  g5 {[%clk 0:02:49]} 7. Bg3 {[%clk 0:02:57]}  Nh5 {[%clk 0:02:50]} 8. c4 {[%clk 0:02:52]}  Nxg3 {[%clk 0:02:48]} 9. hxg3 {[%clk 0:02:51]}  Bg4 {[%clk 0:02:38]} 10. cxd5 {[%clk 0:02:49]}  Qxd5 {[%clk 0:02:37]} 11. Bc4 {[%clk 0:02:49]}  Qd7 {[%clk 0:02:31]} 12. Qb3 {[%clk 0:02:48]}  c6 {[%clk 0:02:01]} 13. Bxf7+ {[%clk 0:02:45]}  Kd8 {[%clk 0:01:59]} 14. O-O-O {[%clk 0:02:37]}  Na6 {[%clk 0:01:57]} 15. Nc4 {[%clk 0:02:29]}  Kc7 {[%clk 0:01:43]} 16. Nce5 {[%clk 0:02:03]}  Bxe5 {[%clk 0:01:37]} 17. dxe5 {[%clk 0:01:58]}  Qf5 {[%clk 0:01:34]} 18. Bc4 {[%clk 0:01:47]}  Nc5 {[%clk 0:01:33]} 19. Qa3 {[%clk 0:01:43]}  b6 {[%clk 0:01:31]} 20. Be2 {[%clk 0:01:29]}  Bxf3 {[%clk 0:01:24]} 21. Bxf3 {[%clk 0:01:25]}  Qxe5 {[%clk 0:01:24]} 22. Rd4 {[%clk 0:01:14]}  a5 {[%clk 0:01:12]} 23. Qc3 {[%clk 0:01:10]}  Qf6 {[%clk 0:00:51]} 24. Rhd1 {[%clk 0:01:02]}  Rhd8 {[%clk 0:00:43]} 25. Qc4 {[%clk 0:00:52]}  Rd6 {[%clk 0:00:35]} 26. Rxd6 {[%clk 0:00:34]}  exd6 {[%clk 0:00:36]} 27. Qc2 {[%clk 0:00:32]}  Re8 {[%clk 0:00:35]} 28. Qh7+ {[%clk 0:00:30]}  Re7 {[%clk 0:00:34]} 29. Qg8 {[%clk 0:00:30]}  Qe6 {[%clk 0:00:30]} 30. Qa8 {[%clk 0:00:27]}  d5 {[%clk 0:00:23]} 31. Qa7+ {[%clk 0:00:22]}  Nb7 {[%clk 0:00:23]} 32. Qa6 {[%clk 0:00:22]}  Qd6 {[%clk 0:00:22]} 33. Qd3 {[%clk 0:00:21]}  Nc5 {[%clk 0:00:20]} 34. Qc3 {[%clk 0:00:20]}  Qe5 {[%clk 0:00:20]} 35. Qxe5+ {[%clk 0:00:20]}  Rxe5 {[%clk 0:00:21]} 36. Rh1 {[%clk 0:00:19]}  Re6 {[%clk 0:00:21]} 37. Kc2 {[%clk 0:00:19]}  Rf6 {[%clk 0:00:22]} 38. Kc3 {[%clk 0:00:18]}  Kd6 {[%clk 0:00:22]} 39. Kc2 {[%clk 0:00:18]}  Ne4 {[%clk 0:00:22]} 40. Bxe4 {[%clk 0:00:17]}  dxe4 {[%clk 0:00:23]} 41. Rf1 {[%clk 0:00:16]}  Ke5 {[%clk 0:00:23]} 42. Kd2 {[%clk 0:00:15]}  Rd6+ {[%clk 0:00:23]} 43. Ke2 {[%clk 0:00:15]}  Rd5 {[%clk 0:00:23]} 44. Rc1 {[%clk 0:00:15]}  Rb5 {[%clk 0:00:23]} 45. Rc2 {[%clk 0:00:15]}  c5 {[%clk 0:00:23]} 46. f4+ {[%clk 0:00:14]}  exf3+ {[%clk 0:00:23]} 47. gxf3 {[%clk 0:00:13]}  Rb4 {[%clk 0:00:22]} 48. f4+ {[%clk 0:00:13]}  gxf4 {[%clk 0:00:22]} 49. gxf4+ {[%clk 0:00:12]}  Ke4 {[%clk 0:00:22]} 50. Rd2 {[%clk 0:00:12]}  a4 {[%clk 0:00:22]} 51. Kf2 {[%clk 0:00:09]}  h5 {[%clk 0:00:20]} 52. Kg3 {[%clk 0:00:06]}  Kxe3 {[%clk 0:00:20]} 53. Rd8 {[%clk 0:00:05]}  Rxf4 {[%clk 0:00:19]} 54. Re8+ {[%clk 0:00:06]}  Re4 {[%clk 0:00:19]} 55. Rxe4+ {[%clk 0:00:05]}  Kxe4 {[%clk 0:00:20]} 0-1


[Site "https://www.chess.com"]

[Event "Titled Tuesday Blitz August 17 2021"]
[White "Gracia Alvarez, Gerardo Antonio"]
[Black "Piesik, Piotr"]
[WhiteFideId "5109124"]
[BlackFideId "1136194"]
[WhiteElo "2148"]
[BlackElo "2395"]
[Result "1/2-1/2"]
[Round "10"]
[TimeControl "180+1"]
[Date "2021.08.17"]
[WhiteClock "0:00:35"]
[BlackClock "0:01:31"]

1. e4 {[%clk 0:03:00]}  g6 {[%clk 0:02:52]} 2. d4 {[%clk 0:03:00]}  Bg7 {[%clk 0:02:53]} 3. c4 {[%clk 0:02:58]}  d6 {[%clk 0:02:53]} 4. Nf3 {[%clk 0:02:50]}  Nd7 {[%clk 0:02:53]} 5. Be2 {[%clk 0:02:45]}  e5 {[%clk 0:02:52]} 6. Nc3 {[%clk 0:02:38]}  Ngf6 {[%clk 0:02:52]} 7. O-O {[%clk 0:02:30]}  O-O {[%clk 0:02:52]} 8. Re1 {[%clk 0:02:30]}  c6 {[%clk 0:02:51]} 9. Bf1 {[%clk 0:02:29]}  Qb6 {[%clk 0:02:48]} 10. d5 {[%clk 0:02:19]}  cxd5 {[%clk 0:02:48]} 11. cxd5 {[%clk 0:02:14]}  Nc5 {[%clk 0:02:47]} 12. Nd2 {[%clk 0:02:12]}  Bd7 {[%clk 0:02:40]} 13. Nc4 {[%clk 0:02:06]}  Qc7 {[%clk 0:02:39]} 14. b4 {[%clk 0:01:30]}  Na6 {[%clk 0:02:36]} 15. Qb3 {[%clk 0:01:30]}  Rfc8 {[%clk 0:02:33]} 16. Bd2 {[%clk 0:01:26]}  b5 {[%clk 0:02:20]} 17. Na5 {[%clk 0:01:25]}  Qb6 {[%clk 0:02:08]} 18. Be3 {[%clk 0:01:19]}  Qb8 {[%clk 0:02:08]} 19. f3 {[%clk 0:01:10]}  Nh5 {[%clk 0:01:59]} 20. Rac1 {[%clk 0:01:08]}  f5 {[%clk 0:01:57]} 21. a3 {[%clk 0:01:02]}  Nf6 {[%clk 0:01:53]} 22. Nc6 {[%clk 0:00:59]}  Bxc6 {[%clk 0:01:49]} 23. dxc6+ {[%clk 0:00:58]}  Kh8 {[%clk 0:01:49]} 24. Nd5 {[%clk 0:00:56]}  fxe4 {[%clk 0:01:46]} 25. Nxf6 {[%clk 0:00:53]}  Bxf6 {[%clk 0:01:44]} 26. fxe4 {[%clk 0:00:53]}  Nc7 {[%clk 0:01:41]} 27. Red1 {[%clk 0:00:51]}  Rd8 {[%clk 0:01:34]} 28. Qf7 {[%clk 0:00:47]}  Rf8 {[%clk 0:01:32]} 29. Qd7 {[%clk 0:00:39]}  Rd8 {[%clk 0:01:31]} 30. Qf7 {[%clk 0:00:36]}  Rf8 {[%clk 0:01:31]} 31. Qd7 {[%clk 0:00:35]}  Rd8 {[%clk 0:01:31]} 32. Qf7 {[%clk 0:00:35]} 1/2-1/2


[Site "https://www.chess.com"]

[Event "Titled Tuesday Blitz August 17 2021"]
[White "Dronavalli, Harika"]
[Black "Bobkov, Vadim"]
[WhiteFideId "5015197"]
[BlackFideId "34110876"]
[WhiteElo "2422"]
[BlackElo "2117"]
[Result "0-1"]
[Round "10"]
[TimeControl "180+1"]
[Date "2021.08.17"]
[WhiteClock "0:00:21"]
[BlackClock "0:00:04"]

1. Nf3 {[%clk 0:03:00]}  d5 {[%clk 0:02:59]} 2. c4 {[%clk 0:02:55]}  e6 {[%clk 0:02:59]} 3. g3 {[%clk 0:02:55]}  Nf6 {[%clk 0:02:59]} 4. Bg2 {[%clk 0:02:55]}  Be7 {[%clk 0:03:00]} 5. O-O {[%clk 0:02:55]}  O-O {[%clk 0:03:00]} 6. b3 {[%clk 0:02:56]}  a5 {[%clk 0:03:01]} 7. Nc3 {[%clk 0:02:55]}  Bd7 {[%clk 0:02:59]} 8. d3 {[%clk 0:02:46]}  Na6 {[%clk 0:02:49]} 9. Bb2 {[%clk 0:02:45]}  c6 {[%clk 0:02:48]} 10. a3 {[%clk 0:02:42]}  b5 {[%clk 0:02:49]} 11. Ne5 {[%clk 0:02:37]}  Be8 {[%clk 0:02:48]} 12. d4 {[%clk 0:02:30]}  Rb8 {[%clk 0:02:29]} 13. c5 {[%clk 0:02:30]}  Qc7 {[%clk 0:02:20]} 14. Bc1 {[%clk 0:02:29]}  Bxc5 {[%clk 0:02:06]} 15. Nxf7 {[%clk 0:02:04]}  Bxf7 {[%clk 0:01:45]} 16. dxc5 {[%clk 0:02:04]}  Nxc5 {[%clk 0:01:45]} 17. b4 {[%clk 0:02:04]}  Ncd7 {[%clk 0:01:42]} 18. e4 {[%clk 0:02:03]}  Bh5 {[%clk 0:01:05]} 19. Qd2 {[%clk 0:01:45]}  Ra8 {[%clk 0:01:00]} 20. exd5 {[%clk 0:01:29]}  exd5 {[%clk 0:00:58]} 21. Rb1 {[%clk 0:01:21]}  axb4 {[%clk 0:00:53]} 22. axb4 {[%clk 0:01:21]}  Ne5 {[%clk 0:00:40]} 23. Re1 {[%clk 0:00:59]}  Nf3+ {[%clk 0:00:36]} 24. Bxf3 {[%clk 0:00:59]}  Bxf3 {[%clk 0:00:36]} 25. Qd4 {[%clk 0:00:53]}  Ne4 {[%clk 0:00:31]} 26. Nxe4 {[%clk 0:00:47]}  Bxe4 {[%clk 0:00:31]} 27. Rb3 {[%clk 0:00:46]}  Qf7 {[%clk 0:00:26]} 28. Bb2 {[%clk 0:00:42]}  h5 {[%clk 0:00:17]} 29. f3 {[%clk 0:00:43]}  Bf5 {[%clk 0:00:11]} 30. Rbe3 {[%clk 0:00:43]}  Ra7 {[%clk 0:00:10]} 31. Re5 {[%clk 0:00:42]}  Rfa8 {[%clk 0:00:07]} 32. Qh4 {[%clk 0:00:34]}  Bg6 {[%clk 0:00:07]} 33. Re7 {[%clk 0:00:33]}  Qxf3 {[%clk 0:00:07]} 34. Qd4 {[%clk 0:00:29]}  Qf6 {[%clk 0:00:02]} 35. Rxa7 {[%clk 0:00:25]}  Rxa7 {[%clk 0:00:02]} 36. Qxa7 {[%clk 0:00:20]}  Qxb2 {[%clk 0:00:02]} 37. Qc5 {[%clk 0:00:19]}  Be4 {[%clk 0:00:02]} 38. Qf2 {[%clk 0:00:17]}  Qxb4 {[%clk 0:00:02]} 39. Rf1 {[%clk 0:00:17]}  Qe7 {[%clk 0:00:01]} 40. Qf4 {[%clk 0:00:17]}  Qe6 {[%clk 0:00:01]} 41. Qb8+ {[%clk 0:00:16]}  Kh7 {[%clk 0:00:01]} 42. Qf4 {[%clk 0:00:17]}  Qg6 {[%clk 0:00:02]} 43. h4 {[%clk 0:00:16]}  b4 {[%clk 0:00:02]} 44. Kh2 {[%clk 0:00:17]}  Qg4 {[%clk 0:00:03]} 45. Qf2 {[%clk 0:00:15]}  b3 {[%clk 0:00:03]} 46. Rc1 {[%clk 0:00:15]}  Qg6 {[%clk 0:00:03]} 47. Rc3 {[%clk 0:00:15]}  Bc2 {[%clk 0:00:03]} 48. Rc5 {[%clk 0:00:14]}  b2 {[%clk 0:00:03]} 49. Rxc2 {[%clk 0:00:13]}  b1=Q {[%clk 0:00:02]} 50. Re2 {[%clk 0:00:14]}  Qbe4 {[%clk 0:00:03]} 51. Rxe4 {[%clk 0:00:14]}  Qxe4 {[%clk 0:00:04]} 52. Qd2 {[%clk 0:00:14]}  c5 {[%clk 0:00:04]} 53. Qg5 {[%clk 0:00:14]}  Qg6 {[%clk 0:00:04]} 54. Qxd5 {[%clk 0:00:14]}  Qc2+ {[%clk 0:00:03]} 55. Kh3 {[%clk 0:00:13]}  c4 {[%clk 0:00:04]} 56. Qxh5+ {[%clk 0:00:14]}  Kg8 {[%clk 0:00:04]} 57. Qe8+ {[%clk 0:00:14]}  Kh7 {[%clk 0:00:04]} 58. Qh5+ {[%clk 0:00:15]}  Kg8 {[%clk 0:00:05]} 59. Qd5+ {[%clk 0:00:15]}  Kh7 {[%clk 0:00:04]} 60. h5 {[%clk 0:00:15]}  Qd3 {[%clk 0:00:03]} 61. Qc5 {[%clk 0:00:15]}  c3 {[%clk 0:00:03]} 62. Kg4 {[%clk 0:00:15]}  Qe2+ {[%clk 0:00:02]} 63. Kg5 {[%clk 0:00:15]}  Qd2+ {[%clk 0:00:02]} 64. Kg4 {[%clk 0:00:14]}  c2 {[%clk 0:00:03]} 65. Qf5+ {[%clk 0:00:14]}  Kg8 {[%clk 0:00:01]} 66. Qc8+ {[%clk 0:00:14]}  Kf7 {[%clk 0:00:02]} 67. Qc7+ {[%clk 0:00:14]}  Kf6 {[%clk 0:00:01]} 68. Qc6+ {[%clk 0:00:15]}  Ke7 {[%clk 0:00:02]} 69. Qc7+ {[%clk 0:00:15]}  Qd7+ {[%clk 0:00:02]} 70. Qxd7+ {[%clk 0:00:15]}  Kxd7 {[%clk 0:00:02]} 71. Kg5 {[%clk 0:00:16]}  c1=Q+ {[%clk 0:00:02]} 72. Kg6 {[%clk 0:00:17]}  Qc6+ {[%clk 0:00:03]} 73. Kxg7 {[%clk 0:00:18]}  Qc3+ {[%clk 0:00:03]} 74. Kg6 {[%clk 0:00:18]}  Qxg3+ {[%clk 0:00:04]} 75. Kf7 {[%clk 0:00:18]}  Qh4 {[%clk 0:00:03]} 76. Kg6 {[%clk 0:00:19]}  Qg4+ {[%clk 0:00:03]} 77. Kh6 {[%clk 0:00:19]}  Ke7 {[%clk 0:00:03]} 78. Kh7 {[%clk 0:00:20]}  Kf7 {[%clk 0:00:03]} 79. h6 {[%clk 0:00:21]}  Qg8# {[%clk 0:00:04]} 0-1


[Site "https://www.chess.com"]

[Event "Titled Tuesday Blitz August 17 2021"]
[White "Idrisov, Ildar F"]
[Black "Girinath, P.D.S."]
[WhiteFideId "4151020"]
[BlackFideId "5000572"]
[WhiteElo "2209"]
[BlackElo "2333"]
[Result "1/2-1/2"]
[Round "10"]
[TimeControl "180+1"]
[Date "2021.08.17"]
[WhiteClock "0:00:04"]
[BlackClock "0:00:06"]

1. Nf3 {[%clk 0:03:00]}  Nf6 {[%clk 0:02:59]} 2. b3 {[%clk 0:03:00]}  g6 {[%clk 0:03:00]} 3. Bb2 {[%clk 0:03:01]}  Bg7 {[%clk 0:03:00]} 4. c4 {[%clk 0:03:01]}  O-O {[%clk 0:03:00]} 5. g3 {[%clk 0:03:02]}  d6 {[%clk 0:03:01]} 6. d4 {[%clk 0:03:01]}  a5 {[%clk 0:02:59]} 7. a3 {[%clk 0:03:00]}  e5 {[%clk 0:02:59]} 8. dxe5 {[%clk 0:02:59]}  Nfd7 {[%clk 0:02:59]} 9. Nc3 {[%clk 0:02:56]}  dxe5 {[%clk 0:02:49]} 10. Qd2 {[%clk 0:02:43]}  Nc5 {[%clk 0:02:44]} 11. Qxd8 {[%clk 0:02:24]}  Rxd8 {[%clk 0:02:45]} 12. b4 {[%clk 0:02:24]}  axb4 {[%clk 0:02:33]} 13. axb4 {[%clk 0:02:24]}  Rxa1+ {[%clk 0:02:33]} 14. Bxa1 {[%clk 0:02:24]}  Nb3 {[%clk 0:02:34]} 15. Bb2 {[%clk 0:02:21]}  Na6 {[%clk 0:02:14]} 16. Nd5 {[%clk 0:01:32]}  c6 {[%clk 0:02:05]} 17. Ne7+ {[%clk 0:01:31]}  Kf8 {[%clk 0:02:04]} 18. Nxc8 {[%clk 0:01:31]}  Nxb4 {[%clk 0:02:03]} 19. e4 {[%clk 0:01:13]}  Rxc8 {[%clk 0:01:45]} 20. Bxe5 {[%clk 0:00:56]}  Bxe5 {[%clk 0:01:30]} 21. Nxe5 {[%clk 0:00:56]}  Re8 {[%clk 0:01:28]} 22. f4 {[%clk 0:00:48]}  f6 {[%clk 0:01:25]} 23. Nd7+ {[%clk 0:00:47]}  Kg7 {[%clk 0:01:14]} 24. e5 {[%clk 0:00:46]}  fxe5 {[%clk 0:01:02]} 25. Nxe5 {[%clk 0:00:44]}  Nd4 {[%clk 0:00:50]} 26. Kf2 {[%clk 0:00:39]}  Ra8 {[%clk 0:00:48]} 27. Bh3 {[%clk 0:00:26]}  Ra2+ {[%clk 0:00:37]} 28. Ke3 {[%clk 0:00:25]}  c5 {[%clk 0:00:37]} 29. Bg4 {[%clk 0:00:22]}  h5 {[%clk 0:00:31]} 30. Bf3 {[%clk 0:00:22]}  Ra3+ {[%clk 0:00:27]} 31. Kf2 {[%clk 0:00:18]}  b6 {[%clk 0:00:25]} 32. Rb1 {[%clk 0:00:16]}  Ra2+ {[%clk 0:00:24]} 33. Kg1 {[%clk 0:00:15]}  Nd3 {[%clk 0:00:21]} 34. Bd5 {[%clk 0:00:13]}  Nxe5 {[%clk 0:00:13]} 35. fxe5 {[%clk 0:00:13]}  Ra7 {[%clk 0:00:09]} 36. Rxb6 {[%clk 0:00:11]}  Re7 {[%clk 0:00:10]} 37. e6 {[%clk 0:00:11]}  Kf6 {[%clk 0:00:10]} 38. Kf2 {[%clk 0:00:10]}  Ke5 {[%clk 0:00:09]} 39. Ke3 {[%clk 0:00:09]}  Nxe6 {[%clk 0:00:09]} 40. Bxe6 {[%clk 0:00:08]}  Rxe6 {[%clk 0:00:10]} 41. Rxe6+ {[%clk 0:00:08]}  Kxe6 {[%clk 0:00:11]} 42. Ke4 {[%clk 0:00:08]}  g5 {[%clk 0:00:09]} 43. h4 {[%clk 0:00:07]}  g4 {[%clk 0:00:07]} 44. Kd3 {[%clk 0:00:04]}  Kf5 {[%clk 0:00:06]} 45. Ke3 {[%clk 0:00:04]}  Ke5 {[%clk 0:00:06]} 46. Kd3 {[%clk 0:00:04]}  Kf5 {[%clk 0:00:06]} 47. Ke3 {[%clk 0:00:04]}  Ke5 {[%clk 0:00:06]} 48. Kd3 {[%clk 0:00:04]}  Kd6 {[%clk 0:00:06]} 49. Ke4 {[%clk 0:00:04]}  Ke6 {[%clk 0:00:06]} 50. Kd3 {[%clk 0:00:04]}  Kf5 {[%clk 0:00:06]} 1/2-1/2


[Site "https://www.chess.com"]

[Event "Titled Tuesday Blitz August 17 2021"]
[White "Indjic, Aleksandar"]
[Black "Preotu, Razvan"]
[WhiteFideId "911925"]
[BlackFideId "2613280"]
[WhiteElo "2643"]
[BlackElo "2407"]
[Result "1-0"]
[Round "10"]
[TimeControl "180+1"]
[Date "2021.08.17"]
[WhiteClock "0:00:12"]
[BlackClock "0:00:02"]

1. e4 {[%clk 0:03:00]}  c5 {[%clk 0:02:59]} 2. Nf3 {[%clk 0:03:01]}  d6 {[%clk 0:02:59]} 3. d4 {[%clk 0:03:01]}  cxd4 {[%clk 0:03:00]} 4. Nxd4 {[%clk 0:02:59]}  Nf6 {[%clk 0:03:00]} 5. Nc3 {[%clk 0:03:00]}  a6 {[%clk 0:03:00]} 6. Bc4 {[%clk 0:03:00]}  e6 {[%clk 0:02:59]} 7. Bb3 {[%clk 0:02:59]}  b5 {[%clk 0:02:59]} 8. Be3 {[%clk 0:02:57]}  Be7 {[%clk 0:02:57]} 9. Qe2 {[%clk 0:02:51]}  O-O {[%clk 0:02:54]} 10. O-O-O {[%clk 0:02:51]}  Bb7 {[%clk 0:02:48]} 11. f3 {[%clk 0:02:51]}  Nc6 {[%clk 0:02:44]} 12. g4 {[%clk 0:02:50]}  b4 {[%clk 0:02:35]} 13. Na4 {[%clk 0:02:49]}  Na5 {[%clk 0:02:31]} 14. g5 {[%clk 0:02:42]}  Nd7 {[%clk 0:02:31]} 15. h4 {[%clk 0:02:41]}  Nxb3+ {[%clk 0:02:26]} 16. axb3 {[%clk 0:02:39]}  Qa5 {[%clk 0:02:26]} 17. Kb1 {[%clk 0:02:32]}  Nc5 {[%clk 0:02:23]} 18. h5 {[%clk 0:02:31]}  Nxa4 {[%clk 0:02:17]} 19. bxa4 {[%clk 0:02:30]}  Qxa4 {[%clk 0:01:57]} 20. g6 {[%clk 0:02:28]}  Bf6 {[%clk 0:01:43]} 21. h6 {[%clk 0:02:22]}  fxg6 {[%clk 0:01:28]} 22. hxg7 {[%clk 0:02:21]}  Bxg7 {[%clk 0:01:16]} 23. Nxe6 {[%clk 0:02:16]}  b3 {[%clk 0:01:15]} 24. cxb3 {[%clk 0:02:12]}  Bxe4+ {[%clk 0:01:15]} 25. Rd3 {[%clk 0:01:41]}  Qxb3 {[%clk 0:00:39]} 26. fxe4 {[%clk 0:01:29]}  Qxe6 {[%clk 0:00:39]} 27. Bd4 {[%clk 0:01:28]}  Bxd4 {[%clk 0:00:28]} 28. Rxd4 {[%clk 0:01:29]}  Rab8 {[%clk 0:00:28]} 29. Qh2 {[%clk 0:01:25]}  Rb7 {[%clk 0:00:24]} 30. Ka1 {[%clk 0:01:18]}  Qe5 {[%clk 0:00:16]} 31. Rxd6 {[%clk 0:01:13]}  Qxe4 {[%clk 0:00:13]} 32. Rxg6+ {[%clk 0:01:09]}  Qxg6 {[%clk 0:00:13]} 33. Rg1 {[%clk 0:01:09]}  Rfb8 {[%clk 0:00:03]} 34. Rxg6+ {[%clk 0:01:05]}  hxg6 {[%clk 0:00:04]} 35. Qd6 {[%clk 0:01:03]}  Rb6 {[%clk 0:00:04]} 36. Qd5+ {[%clk 0:01:03]}  Kg7 {[%clk 0:00:05]} 37. Qd4+ {[%clk 0:01:03]}  Rf6 {[%clk 0:00:02]} 38. Qa7+ {[%clk 0:01:03]}  Kh6 {[%clk 0:00:01]} 39. Qxb8 {[%clk 0:01:03]}  g5 {[%clk 0:00:02]} 40. Qh8+ {[%clk 0:00:58]}  Kg6 {[%clk 0:00:03]} 41. Ka2 {[%clk 0:00:57]}  g4 {[%clk 0:00:03]} 42. Kb3 {[%clk 0:00:53]}  Kf5 {[%clk 0:00:03]} 43. Qg7 {[%clk 0:00:52]}  Rg6 {[%clk 0:00:02]} 44. Qf7+ {[%clk 0:00:53]}  Kg5 {[%clk 0:00:03]} 45. Qf2 {[%clk 0:00:48]}  Kh5 {[%clk 0:00:02]} 46. Qh2+ {[%clk 0:00:47]}  Kg5 {[%clk 0:00:02]} 47. Kc4 {[%clk 0:00:47]}  Kf5 {[%clk 0:00:03]} 48. Qg3 {[%clk 0:00:45]}  Rf6 {[%clk 0:00:02]} 49. Kd5 {[%clk 0:00:43]}  Kg5 {[%clk 0:00:03]} 50. Ke4 {[%clk 0:00:42]}  Rf3 {[%clk 0:00:03]} 51. Qg1 {[%clk 0:00:35]}  a5 {[%clk 0:00:02]} 52. Qc5+ {[%clk 0:00:33]}  Kh4 {[%clk 0:00:02]} 53. Qxa5 {[%clk 0:00:33]}  Kh3 {[%clk 0:00:03]} 54. Qh5+ {[%clk 0:00:32]}  Kg3 {[%clk 0:00:03]} 55. Qe5+ {[%clk 0:00:24]}  Kg2 {[%clk 0:00:02]} 56. b4 {[%clk 0:00:23]}  g3 {[%clk 0:00:02]} 57. Qd5 {[%clk 0:00:23]}  Rf2 {[%clk 0:00:02]} 58. b5 {[%clk 0:00:18]}  Kf1 {[%clk 0:00:01]} 59. b6 {[%clk 0:00:17]}  Ke1 {[%clk 0:00:02]} 60. Qa5+ {[%clk 0:00:15]}  Kf1 {[%clk 0:00:01]} 61. Qb5+ {[%clk 0:00:15]}  Ke1 {[%clk 0:00:01]} 62. b7 {[%clk 0:00:16]}  g2 {[%clk 0:00:02]} 63. b8=Q {[%clk 0:00:15]}  Re2+ {[%clk 0:00:02]} 64. Qxe2+ {[%clk 0:00:12]}  Kxe2 {[%clk 0:00:02]} 65. Qb6 {[%clk 0:00:12]}  Kf1 {[%clk 0:00:02]} 66. Kf3 {[%clk 0:00:13]}  g1=Q {[%clk 0:00:02]} 67. Qb1# {[%clk 0:00:12]} 1-0


[Site "https://www.chess.com"]

[Event "Titled Tuesday Blitz August 17 2021"]
[White "Kadam, Om Manish"]
[Black "Sokolovsky, Yahli"]
[WhiteFideId "45076294"]
[BlackFideId "2820242"]
[WhiteElo "1729"]
[BlackElo "1770"]
[Result "1-0"]
[Round "10"]
[TimeControl "180+1"]
[Date "2021.08.17"]
[WhiteClock "0:02:25"]
[BlackClock "0:00:18"]

1. e4 {[%clk 0:03:00]}  g6 {[%clk 0:02:58]} 2. d4 {[%clk 0:03:00]}  Bg7 {[%clk 0:02:58]} 3. Nf3 {[%clk 0:03:00]}  d6 {[%clk 0:02:59]} 4. Bc4 {[%clk 0:03:01]}  e6 {[%clk 0:02:58]} 5. O-O {[%clk 0:03:00]}  Ne7 {[%clk 0:02:59]} 6. Bb3 {[%clk 0:03:00]}  O-O {[%clk 0:02:58]} 7. c4 {[%clk 0:03:00]}  c5 {[%clk 0:02:56]} 8. Nc3 {[%clk 0:02:56]}  Nbc6 {[%clk 0:02:54]} 9. Be3 {[%clk 0:02:56]}  b6 {[%clk 0:02:48]} 10. d5 {[%clk 0:02:49]}  Ne5 {[%clk 0:02:45]} 11. Nxe5 {[%clk 0:02:49]}  Bxe5 {[%clk 0:02:40]} 12. f4 {[%clk 0:02:49]}  Bxc3 {[%clk 0:02:41]} 13. bxc3 {[%clk 0:02:49]}  exd5 {[%clk 0:02:40]} 14. cxd5 {[%clk 0:02:48]}  f5 {[%clk 0:02:40]} 15. e5 {[%clk 0:02:48]}  Bb7 {[%clk 0:02:40]} 16. Qd3 {[%clk 0:02:44]}  a6 {[%clk 0:02:20]} 17. Rfe1 {[%clk 0:02:39]}  Qc7 {[%clk 0:02:00]} 18. exd6 {[%clk 0:02:36]}  Qxd6 {[%clk 0:02:00]} 19. Rad1 {[%clk 0:02:35]}  Rad8 {[%clk 0:01:30]} 20. Bf2 {[%clk 0:02:33]}  Nc8 {[%clk 0:01:30]} 21. Re6 {[%clk 0:02:33]}  Qxf4 {[%clk 0:01:30]} 22. d6 {[%clk 0:02:31]}  Kh8 {[%clk 0:00:50]} 23. Bg3 {[%clk 0:02:28]}  Qe4 {[%clk 0:00:18]} 24. Rxe4 {[%clk 0:02:25]} 1-0


[Site "https://www.chess.com"]

[Event "Titled Tuesday Blitz August 17 2021"]
[White "Kalghatgi, Nikhil"]
[Black "Musovic, Armin"]
[WhiteFideId "2056496"]
[BlackFideId "939935"]
[WhiteElo "1994"]
[BlackElo "2250"]
[Result "0-1"]
[Round "10"]
[TimeControl "180+1"]
[Date "2021.08.17"]
[WhiteClock "0:00:33"]
[BlackClock "0:00:33"]

1. d4 {[%clk 0:03:00]}  d5 {[%clk 0:02:55]} 2. Bg5 {[%clk 0:02:59]}  c5 {[%clk 0:02:53]} 3. c3 {[%clk 0:02:55]}  Nc6 {[%clk 0:02:51]} 4. e3 {[%clk 0:02:50]}  f6 {[%clk 0:02:50]} 5. Bh4 {[%clk 0:02:50]}  a6 {[%clk 0:02:51]} 6. Nf3 {[%clk 0:02:48]}  Bg4 {[%clk 0:02:51]} 7. Be2 {[%clk 0:02:46]}  e6 {[%clk 0:02:50]} 8. Nbd2 {[%clk 0:02:43]}  cxd4 {[%clk 0:02:46]} 9. Nxd4 {[%clk 0:02:41]}  Bxe2 {[%clk 0:02:44]} 10. Qxe2 {[%clk 0:02:39]}  Qd7 {[%clk 0:02:43]} 11. O-O {[%clk 0:02:34]}  e5 {[%clk 0:02:42]} 12. Nxc6 {[%clk 0:02:33]}  bxc6 {[%clk 0:02:42]} 13. c4 {[%clk 0:02:29]}  Bb4 {[%clk 0:02:40]} 14. cxd5 {[%clk 0:02:27]}  cxd5 {[%clk 0:02:37]} 15. Rfd1 {[%clk 0:02:25]}  Bxd2 {[%clk 0:02:36]} 16. Rxd2 {[%clk 0:02:25]}  Ne7 {[%clk 0:02:37]} 17. Rad1 {[%clk 0:02:20]}  O-O {[%clk 0:02:37]} 18. f4 {[%clk 0:02:05]}  e4 {[%clk 0:02:24]} 19. Rd4 {[%clk 0:02:03]}  Qe6 {[%clk 0:02:20]} 20. Be1 {[%clk 0:02:00]}  Rfd8 {[%clk 0:02:18]} 21. Bc3 {[%clk 0:01:53]}  h6 {[%clk 0:02:11]} 22. b3 {[%clk 0:01:48]}  Rac8 {[%clk 0:02:03]} 23. Ba1 {[%clk 0:01:43]}  Rc6 {[%clk 0:02:03]} 24. R4d2 {[%clk 0:01:34]}  Rdc8 {[%clk 0:02:02]} 25. g4 {[%clk 0:01:33]}  h5 {[%clk 0:02:01]} 26. g5 {[%clk 0:01:28]}  Qh3 {[%clk 0:01:29]} 27. gxf6 {[%clk 0:01:20]}  gxf6 {[%clk 0:01:25]} 28. Qg2+ {[%clk 0:01:14]}  Qxg2+ {[%clk 0:01:13]} 29. Kxg2 {[%clk 0:01:14]}  Kf7 {[%clk 0:01:11]} 30. Bb2 {[%clk 0:01:05]}  Rc2 {[%clk 0:01:11]} 31. Ba3 {[%clk 0:01:01]}  Nf5 {[%clk 0:01:06]} 32. Kf2 {[%clk 0:01:00]}  Ke6 {[%clk 0:01:06]} 33. Ke2 {[%clk 0:01:00]}  d4 {[%clk 0:01:05]} 34. exd4 {[%clk 0:00:54]}  Kd5 {[%clk 0:00:59]} 35. Rxc2 {[%clk 0:00:51]}  Rxc2+ {[%clk 0:00:59]} 36. Rd2 {[%clk 0:00:51]}  Nxd4+ {[%clk 0:00:59]} 37. Kd1 {[%clk 0:00:41]}  Rxd2+ {[%clk 0:00:57]} 38. Kxd2 {[%clk 0:00:42]}  Nf3+ {[%clk 0:00:52]} 39. Ke3 {[%clk 0:00:42]}  Nxh2 {[%clk 0:00:51]} 40. Bb2 {[%clk 0:00:43]}  Ng4+ {[%clk 0:00:51]} 41. Ke2 {[%clk 0:00:42]}  f5 {[%clk 0:00:51]} 42. a3 {[%clk 0:00:42]}  h4 {[%clk 0:00:51]} 43. Kf1 {[%clk 0:00:38]}  h3 {[%clk 0:00:52]} 44. Kg1 {[%clk 0:00:38]}  e3 {[%clk 0:00:52]} 45. Bc3 {[%clk 0:00:38]}  Ke4 {[%clk 0:00:49]} 46. b4 {[%clk 0:00:36]}  Kxf4 {[%clk 0:00:38]} 47. a4 {[%clk 0:00:36]}  Kf3 {[%clk 0:00:34]} 48. b5 {[%clk 0:00:33]}  h2+ {[%clk 0:00:35]} 49. Kh1 {[%clk 0:00:33]}  Kg3 {[%clk 0:00:33]} 0-1


[Site "https://www.chess.com"]